fUST/lending_fUST_20250120
["ID","MTS","AMOUNT","RATE_DAILY","PERIOD"]
[349674172,1737369033749,-500.0,0.00022465,3]
[349674173,1737369033759,-500.0,0.00022465,3]
[349674174,1737369033770,-4170.49,0.00022465,3]
[349674175,1737369033780,-972.24,0.00022465,3]
[349674176,1737369033790,-2370.48,0.00022465,3]
[349674177,1737369033799,-500.0,0.00022465,3]
[349674178,1737369033809,-500.0,0.00022465,3]
[349674179,1737369033819,-1392.97,0.00022465,3]
[349674180,1737369033829,-500.0,0.00022465,3]
[349674181,1737369033838,-500.0,0.00022465,3]
[349674182,1737369033848,-500.0,0.00022465,3]
[349674183,1737369033858,-1425.5,0.00022465,3]
[349674184,1737369033869,-500.0,0.00022465,3]
[349674185,1737369033882,-1349.46,0.00022465,3]
[349674186,1737369033895,-3128.55,0.00022465,3]
[349674187,1737369033907,-154.838681,0.00022503,14]
[349674188,1737369033920,-1000.0,0.00022521,2]
[349674189,1737369033930,-536.54,0.00022602,3]
[349674190,1737369033942,-500.0,0.00022602,3]
[349674191,1737369033954,-500.0,0.00022602,3]
[349674192,1737369033967,-4170.49,0.00022602,3]
[349674193,1737369033980,-972.24,0.00022602,3]
[349674194,1737369033991,-2370.48,0.00022602,3]
[349674195,1737369034001,-500.0,0.00022602,3]
[349674196,1737369034011,-500.0,0.00022602,3]
[349674197,1737369034020,-1392.97,0.00022602,3]
[349674198,1737369034030,-500.0,0.00022602,3]
[349674199,1737369034039,-500.0,0.00022602,3]
[349674200,1737369034049,-500.0,0.00022602,3]
[349674201,1737369034058,-1425.5,0.00022602,3]
[349674202,1737369034068,-500.0,0.00022602,3]
[349674203,1737369034077,-1349.46,0.00022602,3]
[349674204,1737369034088,-3128.55,0.00022602,3]
[349674205,1737369034098,-536.54,0.00022739,3]
[349674206,1737369034107,-500.0,0.00022739,3]
[349674207,1737369034117,-500.0,0.00022739,3]
[349674208,1737369034127,-4170.49,0.00022739,3]
[349674209,1737369034136,-972.24,0.00022739,3]
[349674210,1737369034146,-2370.48,0.00022739,3]
[349674211,1737369034156,-500.0,0.00022739,3]
[349674212,1737369034166,-500.0,0.00022739,3]
[349674213,1737369034177,-1392.97,0.00022739,3]
[349674214,1737369034187,-500.0,0.00022739,3]
[349674215,1737369034197,-500.0,0.00022739,3]
[349674216,1737369034207,-500.0,0.00022739,3]
[349674217,1737369034217,-1425.5,0.00022739,3]
[349674218,1737369034228,-500.0,0.00022739,3]
[349674219,1737369034237,-1349.46,0.00022739,3]
[349674220,1737369034247,-2896.79557009,0.00022739,3]
[349674261,1737369038075,-171.28132745,0.00021817,2]
[349674263,1737369038085,-231.75442991,0.00022739,3]
[349674266,1737369038095,-435.91005339,0.0002275,2]
[349674268,1737369038106,-2989.69540345,0.0002275,2]
[349674271,1737369038130,-33894.4480859,0.0002275,2]
[349674803,1737369043174,-395.0,0.00022412,2]
[349674805,1737369043185,-12831.641413,0.0002275,2]
[349675060,1737369046049,-2194.80523186,0.0002275,2]
[349675062,1737369046062,-4752.02509683,0.0002275,2]
[349675064,1737369046071,-154.838681,0.00022845,2]
[349675066,1737369046081,-154.838681,0.00022864,14]
[349675068,1737369046090,-536.54,0.00022876,3]
[349675071,1737369046100,-500.0,0.00022876,3]
[349675073,1737369046109,-462.2740124,0.00022876,3]
[349675075,1737369046118,-4170.49,0.00022876,3]
[349675076,1737369046127,-972.24,0.00022876,3]
[349675078,1737369046137,-2370.48,0.00022876,3]
[349675080,1737369046146,-500.0,0.00022876,3]
[349675082,1737369046155,-488.0890255,0.00022876,3]
[349675086,1737369046171,-11.9109745,0.00022876,3]
[349675089,1737369046179,-1340.6504131,0.00022876,3]
[349675093,1737369046193,-52.3195869,0.00022876,3]
[349675095,1737369046202,-500.0,0.00022876,3]
[349675097,1737369046211,-500.0,0.00022876,3]
[349675099,1737369046221,-500.0,0.00022876,3]
[349675101,1737369046230,-1425.5,0.00022876,3]
[349675103,1737369046240,-500.0,0.00022876,3]
[349675105,1737369046250,-1349.46,0.00022876,3]
[349675107,1737369046259,-3128.55,0.00022876,3]
[349675109,1737369046268,-1228.57978986,0.000229,3]
[349675111,1737369046277,-154.838681,0.00022953,2]
[349675113,1737369046286,-1228.5797897,0.00022969,3]
[349675115,1737369046295,-7438.69753278,0.00023,2]
[349675117,1737369046305,-7438.69753278,0.00023,3]
[349675119,1737369046314,-536.54,0.00023013,3]
[349675121,1737369046324,-500.0,0.00023013,3]
[349675123,1737369046333,-4170.49,0.00023013,3]
[349675125,1737369046343,-972.24,0.00023013,3]
[349675127,1737369046351,-2370.48,0.00023013,3]
[349675129,1737369046360,-500.0,0.00023013,3]
[349675131,1737369046369,-500.0,0.00023013,3]
[349675133,1737369046379,-1392.97,0.00023013,3]
[349675135,1737369046388,-500.0,0.00023013,3]
[349675137,1737369046397,-500.0,0.00023013,3]
[349675139,1737369046406,-500.0,0.00023013,3]
[349675141,1737369046416,-1425.5,0.00023013,3]
[349675143,1737369046425,-500.0,0.00023013,3]
[349675145,1737369046435,-1349.46,0.00023013,3]
[349675147,1737369046446,-3128.55,0.00023013,3]
[349675149,1737369046455,-1228.5797897,0.00023038,3]
[349675151,1737369046464,-154.838681,0.0002304,10]
[349675153,1737369046473,-154.838681,0.00023061,2]
[349675155,1737369046484,-1228.5797897,0.00023107,3]
[349675157,1737369046493,-536.54,0.0002315,3]
[349675159,1737369046502,-500.0,0.0002315,3]
[349675161,1737369046512,-4170.49,0.0002315,3]
[349675163,1737369046521,-972.24,0.0002315,3]
[349675165,1737369046530,-2370.48,0.0002315,3]
[349675167,1737369046539,-500.0,0.0002315,3]
[349675169,1737369046548,-500.0,0.0002315,3]
[349675171,1737369046557,-1392.97,0.0002315,3]
[349675173,1737369046566,-500.0,0.0002315,3]
[349675175,1737369046575,-500.0,0.0002315,3]
[349675177,1737369046584,-425.83086393,0.0002315,3]
[349675179,1737369046593,-1425.5,0.0002315,3]
[349675181,1737369046603,-500.0,0.0002315,3]
[349675183,1737369046612,-1349.46,0.0002315,3]
[349675185,1737369046621,-3128.55,0.0002315,3]
[349675187,1737369046630,-1228.5797897,0.00023176,3]
[349675189,1737369046639,-282.5294919,0.00023189,2]
[349675191,1737369046650,-1200.0,0.00023196,2]
[349675193,1737369046662,-154.838681,0.00023226,14]
[349675195,1737369046671,-1228.5797897,0.00023245,3]
[349675197,1737369046680,-600.0,0.00023276,2]
[349675200,1737369046698,-536.54,0.00023287,3]
[349675202,1737369046711,-500.0,0.00023287,3]
[349675204,1737369046721,-4170.49,0.00023287,3]
[349675206,1737369046731,-972.24,0.00023287,3]
[349675208,1737369046741,-2370.48,0.00023287,3]
[349675210,1737369046750,-500.0,0.00023287,3]
[349675212,1737369046761,-500.0,0.00023287,3]
[349675214,1737369046770,-1392.97,0.00023287,3]
[349675216,1737369046779,-500.0,0.00023287,3]
[349675218,1737369046788,-500.0,0.00023287,3]
[349675220,1737369046798,-1425.5,0.00023287,3]
[349675222,1737369046807,-500.0,0.00023287,3]
[349675224,1737369046818,-1349.46,0.00023287,3]
[349675226,1737369046827,-3128.55,0.00023287,3]
[349675228,1737369046837,-1228.5797897,0.00023314,3]
[349675230,1737369046847,-1228.5797897,0.00023383,3]
[349675232,1737369046857,-536.54,0.00023424,3]
[349675234,1737369046867,-500.0,0.00023424,3]
[349675236,1737369046876,-4170.49,0.00023424,3]
[349675238,1737369046886,-972.24,0.00023424,3]
[349675240,1737369046895,-2370.48,0.00023424,3]
[349675242,1737369046905,-500.0,0.00023424,3]
[349675243,1737369046914,-500.0,0.00023424,3]
[349675246,1737369046924,-1392.97,0.00023424,3]
[349675248,1737369046934,-500.0,0.00023424,3]
[349675250,1737369046945,-500.0,0.00023424,3]
[349675252,1737369046956,-1425.5,0.00023424,3]
[349675254,1737369046965,-500.0,0.00023424,3]
[349675256,1737369046975,-1349.46,0.00023424,3]
[349675258,1737369046984,-3128.55,0.00023424,3]
[349675260,1737369046993,-153.0,0.00023436,2]
[349675262,1737369047003,-153.0,0.00023436,2]
[349675264,1737369047012,-153.0,0.00023436,2]
[349675266,1737369047021,-153.0,0.00023436,2]
[349675268,1737369047031,-153.0,0.00023436,2]
[349675270,1737369047040,-153.0,0.00023436,2]
[349675272,1737369047049,-153.0,0.00023436,2]
[349675274,1737369047059,-153.0,0.00023436,2]
[349675276,1737369047069,-246.79,0.00023436,2]
[349675278,1737369047078,-1228.5797897,0.00023452,3]
[349675280,1737369047087,-524.70397355,0.00023499,2]
[349675282,1737369047097,-117411.29025749,0.000235,15]
[349675284,1737369047112,-7413.56963883,0.000235,15]
[349675446,1737369048785,162.064202,0.00013973,2]
[349676915,1737370036108,162.420477,0.00013973,2]
[349676978,1737370232285,-195.30447373,0.00018524,2]
[349676980,1737370232295,-195.30447373,0.00018711,2]
[349676982,1737370232304,-195.30447373,0.000189,2]
[349676984,1737370232313,-203.142631,0.00021199,2]
[349676986,1737370232322,-300.0,0.00021863,2]
[349676988,1737370232332,-10000.0,0.00021864,2]
[349676990,1737370232341,-156.45,0.00021917,2]
[349676992,1737370232350,-503.9393211,0.00021917,3]
[349676994,1737370232359,-500.0,0.00021917,3]
[349676996,1737370232368,-3805.60551894,0.00021962,2]
[349676998,1737370232378,-500.0,0.00022051,3]
[349677000,1737370232387,-500.0,0.00022051,3]
[349677002,1737370232400,-500.0,0.00022051,3]
[349677004,1737370232409,-500.0,0.00022052,2]
[349677006,1737370232418,-500.0,0.00022052,3]
[349677008,1737370232427,-500.0,0.00022052,3]
[349677010,1737370232437,-2304.96,0.00022052,3]
[349677013,1737370232446,-545.83,0.00022052,3]
[349677016,1737370232456,-500.0,0.00022052,3]
[349677019,1737370232465,-500.0,0.00022052,3]
[349677022,1737370232474,-500.0,0.00022052,3]
[349677025,1737370232484,-500.0,0.00022052,3]
[349677028,1737370232494,-699.54,0.00022052,3]
[349677031,1737370232503,-500.0,0.00022052,3]
[349677034,1737370232513,-500.0,0.00022052,3]
[349677037,1737370232522,-500.0,0.00022052,3]
[349677040,1737370232532,-500.0,0.00022052,3]
[349677042,1737370232541,-500.0,0.00022052,3]
[349677044,1737370232550,-500.0,0.00022052,3]
[349677046,1737370232560,-500.0,0.00022052,3]
[349677048,1737370232570,-500.0,0.00022052,3]
[349677050,1737370232579,-500.0,0.00022052,3]
[349677052,1737370232588,-712.75,0.00022052,3]
[349677054,1737370232599,-1637.71,0.00022052,3]
[349677056,1737370232608,-704.47,0.00022052,3]
[349677058,1737370232618,-500.0,0.00022052,3]
[349677060,1737370232627,-336.88248228,0.00022052,3]
[349677062,1737370232636,-500.0,0.00022052,3]
[349677064,1737370232651,-500.0,0.00022052,3]
[349677066,1737370232660,-500.0,0.00022052,3]
[349677067,1737370232669,-1185.24,0.00022053,3]
[349677068,1737370232679,-201.456,0.00022054,2]
[349677069,1737370232688,-500.0,0.00022188,3]
[349677070,1737370232698,-500.0,0.00022188,3]
[349677071,1737370232707,-500.0,0.00022189,2]
[349677072,1737370232716,-500.0,0.00022189,3]
[349677073,1737370232726,-2304.96,0.00022189,3]
[349677074,1737370232735,-545.83,0.00022189,3]
[349677075,1737370232745,-536.67018635,0.00022189,3]
[349677076,1737370232756,-500.0,0.00022189,3]
[349677077,1737370232765,-500.0,0.00022189,3]
[349677078,1737370232774,-699.54,0.00022189,3]
[349677079,1737370232783,-500.0,0.00022189,3]
[349677080,1737370232792,-500.0,0.00022189,3]
[349677081,1737370232805,-500.0,0.00022189,3]
[349677082,1737370232814,-500.0,0.00022189,3]
[349677083,1737370232959,-712.75,0.00022189,3]
[349677084,1737370232969,-1637.71,0.00022189,3]
[349677085,1737370232979,-704.47,0.00022189,3]
[349677086,1737370232988,-500.0,0.00022189,3]
[349677087,1737370232997,-500.0,0.00022189,3]
[349677088,1737370233006,-1185.24,0.0002219,3]
[349677089,1737370233015,-591.526,0.0002232,2]
[349677090,1737370233025,-500.0,0.00022325,3]
[349677091,1737370233034,-500.0,0.00022326,2]
[349677092,1737370233044,-500.0,0.00022326,3]
[349677093,1737370233054,-2304.96,0.00022326,3]
[349677094,1737370233063,-545.83,0.00022326,3]
[349677095,1737370233073,-240.9422834,0.00022326,3]
[349677096,1737370233083,-500.0,0.00022326,3]
[349677097,1737370233093,-699.54,0.00022326,3]
[349677098,1737370233103,-500.0,0.00022326,3]
[349677099,1737370233113,-500.0,0.00022326,3]
[349677100,1737370233122,-712.75,0.00022326,3]
[349677101,1737370233132,-1637.71,0.00022326,3]
[349677102,1737370233144,-704.47,0.00022326,3]
[349677103,1737370233154,-216.97776255,0.00022326,3]
[349677104,1737370233163,-1185.24,0.00022327,3]
[349677105,1737370233173,-500.0,0.00022462,3]
[349677106,1737370233183,-500.0,0.00022463,2]
[349677107,1737370233192,-500.0,0.00022463,3]
[349677108,1737370233202,-2304.96,0.00022463,3]
[349677109,1737370233211,-545.83,0.00022463,3]
[349677110,1737370233221,-500.0,0.00022463,3]
[349677111,1737370233230,-699.54,0.00022463,3]
[349677112,1737370233239,-500.0,0.00022463,3]
[349677113,1737370233249,-582.74833358,0.00022463,3]
[349677114,1737370233259,-712.75,0.00022463,3]
[349677115,1737370233268,-1637.71,0.00022463,3]
[349677116,1737370233278,-704.47,0.00022463,3]
[349677117,1737370233288,-1185.24,0.00022464,3]
[349677118,1737370233297,-954.97,0.000225,2]
[349677119,1737370233306,-545.316,0.00022512,2]
[349677120,1737370233315,-2065.0,0.00022512,2]
[349677121,1737370233324,-2311.0,0.00022512,2]
[349677122,1737370233334,-395.0,0.00022512,2]
[349677123,1737370233343,-500.0,0.00022599,3]
[349677124,1737370233353,-500.0,0.000226,2]
[349677125,1737370233363,-500.0,0.000226,3]
[349677126,1737370233373,-2304.96,0.000226,3]
[349677127,1737370233383,-545.83,0.000226,3]
[349677128,1737370233395,-500.0,0.000226,3]
[349677129,1737370233405,-699.54,0.000226,3]
[349677130,1737370233416,-552.98998467,0.000226,3]
[349677131,1737370233425,-712.75,0.000226,3]
[349677132,1737370233435,-1637.71,0.000226,3]
[349677133,1737370233445,-704.47,0.000226,3]
[349677134,1737370233454,-1185.24,0.00022601,3]
[349677135,1737370233464,-431.93501309,0.00022736,3]
[349677136,1737370233473,-500.0,0.00022737,3]
[349677137,1737370233482,-2304.96,0.00022737,3]
[349677138,1737370233492,-545.83,0.00022737,3]
[349677139,1737370233501,-277.98804408,0.00022737,3]
[349677140,1737370233512,-699.54,0.00022737,3]
[349677141,1737370233522,-712.75,0.00022737,3]
[349677142,1737370233531,-1637.71,0.00022737,3]
[349677143,1737370233542,-704.47,0.00022737,3]
[349677144,1737370233552,-1185.24,0.00022738,3]
[349677145,1737370233562,-500.0,0.00022874,3]
[349677146,1737370233571,-2304.96,0.00022874,3]
[349677147,1737370233581,-545.83,0.00022874,3]
[349677148,1737370233590,-699.54,0.00022874,3]
[349677149,1737370233600,-712.75,0.00022874,3]
[349677150,1737370233609,-1637.71,0.00022874,3]
[349677151,1737370233619,-704.47,0.00022874,3]
[349677152,1737370233628,-1185.24,0.00022875,3]
[349677153,1737370233637,-500.0,0.00023011,3]
[349677154,1737370233648,-2304.96,0.00023011,3]
[349677155,1737370233657,-545.83,0.00023011,3]
[349677156,1737370233667,-699.54,0.00023011,3]
[349677157,1737370233676,-712.75,0.00023011,3]
[349677158,1737370233686,-1637.71,0.00023011,3]
[349677159,1737370233695,-704.47,0.00023011,3]
[349677160,1737370233705,-1185.24,0.00023012,3]
[349677161,1737370233714,-161.96782196,0.00023048,2]
[349677162,1737370233724,-500.0,0.00023148,3]
[349677163,1737370233734,-2304.96,0.00023148,3]
[349677164,1737370233743,-545.83,0.00023148,3]
[349677165,1737370233753,-699.54,0.00023148,3]
[349677166,1737370233763,-712.75,0.00023148,3]
[349677167,1737370233772,-1637.71,0.00023148,3]
[349677168,1737370233782,-704.47,0.00023148,3]
[349677169,1737370233791,-1185.24,0.00023149,3]
[349677170,1737370233802,-729.64614699,0.000232,2]
[349677171,1737370233811,-729.64614697,0.000232,2]
[349677172,1737370233822,-729.64614697,0.000232,2]
[349677173,1737370233831,-729.64614697,0.000232,2]
[349677174,1737370233842,-282.529492,0.00023264,2]
[349677175,1737370233851,-600.0,0.00023276,2]
[349677176,1737370233860,-500.0,0.00023285,3]
[349677177,1737370233870,-2304.96,0.00023285,3]
[349677178,1737370233879,-545.83,0.00023285,3]
[349677179,1737370233894,-699.54,0.00023285,3]
[349677180,1737370233903,-712.75,0.00023285,3]
[349677181,1737370233913,-1637.71,0.00023285,3]
[349677182,1737370233923,-704.47,0.00023285,3]
[349677183,1737370233932,-1185.24,0.00023286,3]
[349677184,1737370233942,-1200.0,0.00023303,2]
[349677185,1737370233952,-500.0,0.00023422,3]
[349677186,1737370233961,-2304.96,0.00023422,3]
[349677187,1737370233972,-545.83,0.00023422,3]
[349677188,1737370233983,-699.54,0.00023422,3]
[349677189,1737370233993,-712.75,0.00023422,3]
[349677190,1737370234004,-1637.71,0.00023422,3]
[349677191,1737370234013,-704.47,0.00023422,3]
[349677192,1737370234024,-1185.24,0.00023423,3]
[349677193,1737370234034,-500.0,0.00023473,2]
[349677194,1737370234044,-502.32626281,0.00023473,2]
[349677195,1737370234054,-500.0,0.00023473,2]
[349677196,1737370234063,-500.30736033,0.00023473,2]
[349677197,1737370234073,-500.0,0.00023473,2]
[349677198,1737370234083,-162.84139363,0.00023498,2]
[349677199,1737370234092,-500.0,0.00023499,2]
[349677200,1737370234102,-500.0,0.00023499,2]
[349677201,1737370234111,-500.0,0.00023499,2]
[349677202,1737370234121,-458.12240529,0.00023499,2]
[349677203,1737370234130,-500.0,0.00023499,2]
[349677204,1737370234139,-500.0,0.00023499,2]
[349677205,1737370234151,-500.0,0.00023499,2]
[349677206,1737370234160,-500.0,0.00023499,2]
[349677207,1737370234170,-500.0,0.00023499,2]
[349677208,1737370234180,-500.0,0.00023499,2]
[349677209,1737370234189,-500.0,0.00023499,2]
[349677210,1737370234198,-500.0,0.00023499,2]
[349677211,1737370234207,-235.25705843,0.00023499,2]
[349677212,1737370234217,-500.0,0.00023499,2]
[349677213,1737370234225,-605.05153936,0.00023499,2]
[349677214,1737370234235,-500.0,0.00023499,2]
[349677215,1737370234244,-500.0,0.00023499,2]
[349677216,1737370234253,-342.46882893,0.00023499,2]
[349677217,1737370234263,-500.0,0.00023499,2]
[349677218,1737370234273,-500.0,0.00023499,2]
[349677219,1737370234282,-500.0,0.00023499,2]
[349677220,1737370234291,-500.0,0.00023499,2]
[349677221,1737370234301,-500.0,0.00023499,2]
[349677222,1737370234310,-500.0,0.00023499,2]
[349677223,1737370234319,-500.0,0.00023499,2]
[349677224,1737370234329,-500.0,0.00023499,2]
[349677225,1737370234338,-500.0,0.00023499,2]
[349677226,1737370234348,-367.29278148,0.00023499,2]
[349677227,1737370234357,-13798.02079792,0.000235,5]
[349677228,1737370234366,-937.61426293,0.000235,5]
[349677229,1737370234376,-356216.14430548,0.000235,15]
[349677230,1737370234385,-16113.58,0.000235,2]
[349677231,1737370234395,-300.0,0.000235,10]
[349677232,1737370234405,-153.0,0.00023513,2]
[349677233,1737370234415,-158.0,0.00023513,2]
[349677234,1737370234425,-153.0,0.00023513,2]
[349677235,1737370234435,-158.0,0.00023513,2]
[349677236,1737370234444,-153.0,0.00023513,2]
[349677237,1737370234454,-153.0,0.00023513,2]
[349677238,1737370234463,-153.0,0.00023513,2]
[349677239,1737370234473,-153.0,0.00023513,2]
[349677240,1737370234482,-153.0,0.00023513,2]
[349677241,1737370234491,-153.0,0.00023513,2]
[349677242,1737370234500,-153.0,0.00023513,2]
[349677243,1737370234509,-153.0,0.00023513,2]
[349677244,1737370234518,-153.0,0.00023513,2]
[349677245,1737370234527,-153.0,0.00023513,2]
[349677246,1737370234536,-153.0,0.00023513,2]
[349677247,1737370234545,-153.0,0.00023513,2]
[349677248,1737370234554,-153.0,0.00023513,2]
[349677249,1737370234563,-153.0,0.00023513,2]
[349677250,1737370234572,-153.0,0.00023513,2]
[349677251,1737370234581,-153.0,0.00023513,2]
[349677252,1737370234591,-225.0,0.00023513,2]
[349677253,1737370234601,-951.28178723,0.00023519,2]
[349677254,1737370234610,-154.838681,0.0002352,10]
[349677255,1737370234619,-500.0,0.00023559,3]
[349677256,1737370234628,-2304.96,0.00023559,3]
[349677257,1737370234637,-545.83,0.00023559,3]
[349677258,1737370234648,-699.54,0.00023559,3]
[349677259,1737370234658,-712.75,0.00023559,3]
[349677260,1737370234667,-1637.71,0.00023559,3]
[349677261,1737370234676,-704.47,0.00023559,3]
[349677262,1737370234686,-1185.24,0.0002356,3]
[349677263,1737370234695,-2500.0,0.0002368,3]
[349677264,1737370234704,-2500.0,0.00023689,3]
[349677265,1737370234713,-500.0,0.00023696,3]
[349677266,1737370234722,-2304.96,0.00023696,3]
[349677267,1737370234731,-545.83,0.00023696,3]
[349677268,1737370234739,-699.54,0.00023696,3]
[349677269,1737370234748,-712.75,0.00023696,3]
[349677270,1737370234757,-10.78909725,0.00023696,3]
[349677321,1737370238252,-332.885003,0.00022238,2]
[349677323,1737370238264,-167.114997,0.00022238,2]
[349677326,1737370238273,-332.885003,0.000229,3]
[349677329,1737370238284,-527.12084979,0.000229,3]
[349677331,1737370238293,-860.00585279,0.00022969,3]
[349677333,1737370238302,-860.00585279,0.00023038,3]
[349677335,1737370238312,-860.00585279,0.00023107,3]
[349677337,1737370238321,-133.48223269,0.00023176,3]
[349677688,1737370243259,-726.5236201,0.00023176,3]
[349677690,1737370243269,-593.63921696,0.00023245,3]
[349677814,1737370246361,-266.36663583,0.00023245,3]
[349677817,1737370246371,-1200.0,0.00023305,2]
[349677819,1737370246381,-860.00585279,0.00023314,3]
[349677821,1737370246391,-860.00585279,0.00023383,3]
[349677823,1737370246401,-860.00585279,0.00023452,3]
[349677824,1737370246410,-860.00585279,0.00023521,3]
[349677825,1737370246419,-420.0,0.00023523,2]
[349677826,1737370246429,-860.00585279,0.0002359,3]
[349677827,1737370246438,-860.00585279,0.00023659,3]
[349677828,1737370246448,-1626.92090275,0.00023696,3]
[349677829,1737370246458,-704.47,0.00023696,3]
[349677830,1737370246467,-1185.24,0.00023697,3]
[349677831,1737370246477,-2500.0,0.00023698,3]
[349677832,1737370246487,-417.05869695,0.00023728,3]
[349677833,1737370365089,400.0,0.00024,120]
[349677837,1737371073600,162.617859,0.00013973,2]
[349677839,1737371254903,1333.0,0.00023233,120]
[349678079,1737371438712,-186.402,0.00018095,2]
[349678081,1737371438721,-186.402,0.00018278,2]
[349678083,1737371438730,-1129.41204831,0.000202,8]
[349678085,1737371438742,-500.0,0.000202,8]
[349678206,1737371443730,-5520.92720142,0.000202,8]
[349678207,1737371443742,-2201.70116677,0.000202,8]
[349678208,1737371443783,-5104.21349745,0.000202,8]
[349678209,1737371443794,-1721.6296,0.000202,8]
[349678210,1737371443806,-7189.91886584,0.000202,8]
[349678211,1737371443817,-520.99,0.000202,8]
[349678212,1737371443839,-89667.43352188,0.000202,8]
[349678213,1737371443848,-1759.0,0.00020394,2]
[349678214,1737371443857,-186.402,0.00020414,2]
[349678215,1737371443866,-3999.3752704,0.00020781,2]
[349678216,1737371443878,-495.8188025,0.00020843,2]
[349678217,1737371443887,-309.0,0.00021119,10]
[349678218,1737371443896,-186.15842,0.00021119,2]
[349678219,1737371443906,-395.0,0.00021822,2]
[349678220,1737371443915,-296.00094689,0.00021918,2]
[349678221,1737371443925,-1759.0,0.00022026,4]
[349678222,1737371443935,-300.0,0.00022047,2]
[349678223,1737371443946,-500.0,0.00022051,3]
[349678224,1737371443955,-500.0,0.00022185,3]
[349678225,1737371443965,-500.0,0.00022185,3]
[349678226,1737371443975,-500.0,0.00022185,3]
[349678227,1737371443985,-500.0,0.00022186,3]
[349678228,1737371443995,-646.81,0.00022186,3]
[349678229,1737371444004,-500.0,0.00022186,3]
[349678230,1737371444013,-476.44039144,0.00022186,3]
[349678231,1737371444023,-500.0,0.00022186,3]
[349678232,1737371444032,-374.95152588,0.00022186,3]
[349678233,1737371444041,-500.0,0.00022186,3]
[349678235,1737371444051,-1841.48,0.00022186,3]
[349678237,1737371444060,-500.0,0.00022186,3]
[349678239,1737371444069,-500.0,0.00022186,3]
[349678241,1737371444079,-500.0,0.00022186,3]
[349678243,1737371444088,-500.0,0.00022186,3]
[349678244,1737371444097,-500.0,0.00022186,3]
[349678246,1737371444107,-500.0,0.00022186,3]
[349678247,1737371444117,-500.0,0.00022186,3]
[349678248,1737371444126,-500.0,0.00022186,3]
[349678249,1737371444136,-500.0,0.00022186,3]
[349678250,1737371444146,-500.0,0.00022186,3]
[349678251,1737371444156,-583.3,0.00022186,3]
[349678252,1737371444166,-500.0,0.00022186,3]
[349678253,1737371444176,-183.28718795,0.00022186,3]
[349678254,1737371444186,-769.54,0.00022186,3]
[349678255,1737371444204,-500.0,0.00022186,3]
[349678257,1737371444214,-500.0,0.00022186,3]
[349678258,1737371444223,-500.0,0.00022186,3]
[349678259,1737371444233,-500.0,0.00022186,3]
[349678260,1737371444243,-150.26797035,0.00022186,3]
[349678261,1737371444252,-500.0,0.00022186,3]
[349678262,1737371444262,-500.0,0.00022186,3]
[349678263,1737371444272,-500.0,0.00022186,3]
[349678264,1737371444281,-500.0,0.00022186,3]
[349678265,1737371444291,-1309.21,0.00022186,3]
[349678266,1737371444300,-641.46,0.00022186,3]
[349678267,1737371444309,-500.0,0.00022186,3]
[349678268,1737371444319,-500.0,0.00022186,3]
[349678269,1737371444329,-161.165,0.00022187,2]